bitfinex-derivatives/quotes_ETHF0:USTF0_20250410
["timestamp","ask_amount","ask_price","bid_price","bid_amount"]
[1744296872502,3.36145,1574.0,1573.9,1.27146]
[1744296872715,1.27145,1574.0,1573.9,1.27146]
[1744296872914,3.49006,1574.1,1574.0,1.27138]
[1744296873220,2.2187,1574.1,1574.0,4.47918]
[1744296873507,2.2848,1574.2,1574.1,1.2713]
[1744296873710,2.2848,1574.2,1574.1,3.3922]
[1744296874106,2.1014,1574.4,1574.3,1.27114]
[1744296874309,4.2052,1574.4,1574.3,1.27114]
[1744296875314,5.47626,1574.4,1574.3,1.27114]
[1744296876214,1.27114,1574.3,1574.2,1.2712]
[1744296876408,10.47634,1574.4,1574.3,1.27114]
[1744296876715,1.27117,1574.3,1574.2,1.27117]
[1744296876910,1.27127,1574.2,1574.1,1.27123]
[1744296877813,1.27137,1574.1,1574.0,1.27133]
[1744296878506,1.27128,1574.2,1574.1,1.27123]
[1744296878908,1.27134,1574.1,1574.0,1.2713]
[1744296879413,1.27138,1574.0,1573.9,1.28092986]
[1744296879915,1.27136,1574.1,1574.0,1.27133]
[1744296880616,1.27138,1574.1,1574.0,1.27135]
[1744296881317,1.27138,1574.0,1573.9,3.40683986]
[1744296881810,9.47918,1574.0,1573.9,0.00953986]
[1744296882210,13.88898,1574.0,1573.9,0.00953986]
[1744296882608,1.27178,1573.5,1573.4,1.27181]
[1744296882808,1.27195,1573.3,1573.2,2.1259]
[1744296883109,1.27172,1573.6,1573.5,1.27178]
[1744296883316,1.27178,1573.5,1573.3,3.51625]
[1744296883511,1.27178,1573.5,1573.4,1.27178]
[1744296884112,1.27185,1573.5,1573.4,1.27182]
[1744296884312,1.27186,1573.4,1573.3,2.25383986]
[1744296884518,1.27186,1573.4,1573.3,3.52571986]
[1744296885014,3.18883986,1573.6,1573.4,1.27182]
[1744296885015,1.27185,1573.5,1573.4,1.27182]
[1744296885216,1.28130986,1573.6,1573.5,1.27178]
[1744296885809,1.27178,1573.5,1573.4,3.5161]
[1744296886216,2.16053986,1573.6,1573.5,1.27178]
[1744296886417,2.16053986,1573.6,1573.5,3.38978]
[1744296886622,0.00953986,1573.6,1573.5,3.38978]
[1744296886913,1.28123986,1573.6,1573.5,3.38978]
[1744296887124,2.16053986,1573.6,1573.5,3.38978]
[1744296887704,3.43223986,1573.6,1573.5,3.38978]
[1744296888017,1.27178,1573.5,1573.4,1.2718]
[1744296888315,3.42278,1573.5,1573.4,3.3898]
[1744296888516,2.151,1573.5,1573.4,6.5976]
[1744296888706,1.28123986,1573.6,1573.5,1.27178]
[1744296888908,1.28123986,1573.6,1573.5,3.37498]
[1744296889104,3.55843986,1573.6,1573.5,3.37498]
[1744296889515,1.27178,1573.5,1573.4,1.27181]
[1744296889715,1.27186,1573.4,1573.3,0.00953986]
[1744296889920,4.47966,1573.4,1573.3,0.00953986]
[1744296890113,3.54906,1573.4,1573.3,0.00953986]
[1744296890420,11.94906,1573.4,1573.3,1.28148986]
[1744296890715,0.00953986,1573.6,1573.3,0.00953986]
[1744296890910,1.27186,1573.4,1573.3,0.00953986]
[1744296891518,3.54906,1573.4,1573.3,0.00953986]
[1744296892417,3.54906,1573.4,1573.3,1.28148986]
[1744296893222,3.54906,1573.4,1573.3,0.00953986]
[1744296894217,7.2772,1573.4,1573.3,0.00953986]
[1744296896125,8.54906,1573.4,1573.3,0.00953986]
[1744296898525,14.38306,1573.4,1573.3,9.86e-06]
[1744296899221,22.78306,1573.4,1573.3,9.86e-06]
[1744296899518,17.78306,1573.4,1573.3,9.86e-06]
[1744296899723,17.78306,1573.4,1573.3,2.13910986]
[1744296900427,8.6677113,1573.5,1573.4,1.27186]
[1744296900617,7.3958613,1573.5,1573.4,4.47966]
[1744296900820,7.3958613,1573.5,1573.4,11.61876]
[1744296902024,0.00953986,1573.6,1573.5,1.27178]
[1744296902327,0.00953986,1573.6,1573.5,3.39438]
[1744296902627,0.00953986,1573.6,1573.5,10.53758]
[1744296903332,1.28123986,1573.6,1573.5,10.53758]
[1744296904231,0.00953986,1573.6,1573.5,10.53758]
[1744296904822,1.28123986,1573.6,1573.5,5.53758]
[1744296905029,0.00953986,1573.6,1573.5,5.53758]
[1744296905928,0.00953986,1573.6,1573.5,10.53758]
[1744296907425,0.00953986,1573.6,1573.5,11.04618154]
[1744296908430,0.00953986,1573.6,1573.5,6.04618154]
[1744296908632,0.00953986,1573.6,1573.5,10.53758]
[1744296908927,0.00953986,1573.6,1573.5,5.53758]
[1744296909123,1.28123986,1573.6,1573.5,2.1226]
[1744296909534,1.28123986,1573.6,1573.5,3.39438]
[1744296909725,0.00953986,1573.6,1573.5,3.39438]
[1744296910033,0.00953986,1573.6,1573.5,14.39038]
[1744296910734,3.43664,1574.2,1574.1,1.2713]
[1744296910931,4.1823,1574.4,1574.0,9.3858]
[1744296911130,2.0216,1574.4,1574.1,3.2078]
[1744296911323,3.17785,1574.3,1573.9,3.2078]
[1744296911523,5.33882,1574.2,1573.7,6.11608]
[1744296911833,1.27173,1573.6,1573.4,4.47961]
[1744296912133,1.27173,1573.6,1573.5,2.0639]
[1744296912629,5.834,1573.8,1573.5,2.0639]
[1744296912826,1.27164,1573.7,1573.5,3.33562]
[1744296913135,3.43234,1573.7,1573.4,3.2078]
[1744296913320,1.2717,1573.6,1573.5,3.27563]
[1744296913526,5.834,1573.8,1573.5,2.0039]
[1744296913729,1.27162,1573.7,1573.6,2.0039]
[1744296913928,7.10558,1573.8,1573.6,2.0039]
[1744296914127,7.8304,1573.8,1573.7,1.27162]
[1744296914639,7.8304,1573.8,1573.7,3.27552]
[1744296915032,9.10194,1573.8,1573.7,2.0039]
[1744296915232,1.27162,1573.7,1573.6,1.27165]
[1744296915425,1.2717,1573.6,1573.5,3.27563]
[1744296915625,4.1027,1573.7,1573.6,1.2717]
[1744296915825,5.37432,1573.7,1573.6,3.2756]
[1744296916025,5.37432,1573.7,1573.6,2.0039]
[1744296916431,1.27178,1573.5,1573.4,1.27184]
[1744296916629,1.27186,1573.4,1573.3,1.28141986]
[1744296916835,3.27696,1573.4,1573.3,0.00953986]
[1744296917039,3.27696,1573.4,1573.3,1.28148986]
[1744296917233,11.67696,1573.4,1573.3,0.00953986]
[1744296917434,11.67696,1573.4,1573.3,1.28148986]
[1744296917633,5.834,1573.5,1573.4,1.27186]
[1744296917831,5.834,1573.5,1573.4,3.45246]
[1744296918133,5.834,1573.5,1573.4,6.66026]
[1744296918338,5.834,1573.5,1573.4,10.38246]
[1744296919437,5.834,1573.5,1573.4,15.38246]
[1744296920638,6.27178,1573.5,1573.4,1.90113]
[1744296920939,1.27186,1573.4,1573.3,0.00953986]
[1744296921140,1.27163,1573.7,1573.5,1.27172]
[1744296921326,9.18106,1573.8,1573.3,7.38823986]
[1744296921532,1.27178,1573.5,1573.4,2.1791]
[1744296921935,1.9871,1573.6,1573.4,2.1791]
[1744296922235,1.27178,1573.5,1573.4,2.1791]
[1744296922435,1.27178,1573.5,1573.4,3.45096]
[1744296922741,1.27178,1573.5,1573.4,2.1791]
[1744296923736,1.27178,1573.5,1573.4,3.45096]
[1744296924040,5.28671,1573.8,1573.6,1.2717]
[1744296924341,7.29551,1573.8,1573.7,2.1084]
[1744296924941,6.0239,1573.8,1573.7,3.38002]
[1744296925141,7.29544,1573.8,1573.7,3.38002]
[1744296926337,7.29544,1573.8,1573.7,2.1084]
[1744296926840,6.0239,1573.8,1573.7,3.38002]
[1744296927044,7.29544,1573.8,1573.7,2.1084]
[1744296927234,7.29544,1573.8,1573.7,3.38002]
[1744296927436,3.17921,1573.7,1573.3,2.00133986]
[1744296927632,4.47966,1573.4,1573.3,0.00953986]
[1744296928230,9.47966,1573.4,1573.3,0.00953986]
[1744296928438,13.74376,1573.4,1573.3,0.00953986]
[1744296928843,15.78946,1573.4,1573.3,0.00953986]
[1744296929245,15.78946,1573.4,1573.1,5.06358417]
[1744296929246,1.27203,1573.2,1573.1,5.06358417]
[1744296929547,1.27203,1573.2,1573.1,4.17e-06]
[1744296929548,10.31383,1573.2,1573.1,4.17e-06]
[1744296929837,21.49083,1573.2,1573.1,4.17e-06]
[1744296930234,1.27219,1573.0,1572.9,19.55038298]
[1744296930429,4.47999,1573.0,1572.9,8.55435298]
[1744296930634,1.27235,1572.8,1572.7,20.61221362]
[1744296930834,24.89215,1572.8,1572.7,18.84746362]
[1744296931033,29.89215,1572.8,1572.7,18.84746362]
[1744296931440,1.27243,1572.7,1572.6,0.00953986]
[1744296931647,3.32393,1572.7,1572.6,0.00953986]
[1744296931940,1.27292,1572.1,1572.0,15.92124362]
[1744296932139,1.27292,1572.1,1572.0,15.90825401]
[1744296932546,2.0515,1572.1,1572.0,17.18125401]
[1744296932747,4.4807,1572.2,1572.1,1.27292]
[1744296933041,2.0515,1572.3,1572.2,1.27284]
[1744296933244,1.27292,1572.1,1572.0,14.52793387]
[1744296933544,1.27308,1571.9,1571.8,28.99227978]
[1744296933746,4.48088,1571.9,1571.8,14.54109979]
[1744296933942,9.48088,1571.9,1571.8,11.23364979]
[1744296934147,17.88088,1571.9,1571.8,11.23364979]
[1744296934442,12.88088,1571.9,1571.8,11.23364979]
[1744296935745,1.27316,1571.8,1571.7,0.00953986]
[1744296936548,3.27546,1571.8,1571.7,0.00953986]
[1744296937348,17.7668,1571.9,1571.7,0.00953986]
[1744296937549,15.83214,1571.9,1571.8,1.27316]
[1744296937851,15.83214,1571.9,1571.8,2.0488]
[1744296938245,14.559,1571.9,1571.8,2.0488]
[1744296938451,1.27316,1571.8,1571.7,0.00953986]
[1744296938652,3.47576,1571.8,1571.7,0.00953986]
[1744296938855,17.51756,1571.8,1571.7,9.86e-06]
[1744296939353,12.51756,1571.8,1571.7,9.86e-06]
[1744296939554,17.51756,1571.8,1571.7,9.86e-06]
[1744296940455,9.30976,1571.8,1571.7,9.86e-06]
[1744296940649,3.47576,1571.8,1571.7,9.86e-06]
[1744296941455,9.67314,1571.9,1571.8,1.27316]
[1744296941755,3.2078,1572.0,1571.7,2.10540986]
[1744296941756,1.27316,1571.8,1571.7,2.10540986]
[1744296941958,1.27316,1571.8,1571.7,3.37858986]
[1744296942258,1.27316,1571.8,1571.7,3.37864986]
[1744296943061,14.96105,1572.0,1571.9,1.27308]
[1744296943362,11.75325,1572.0,1571.9,1.27308]
[1744296943550,10.4802,1572.0,1571.9,1.27228]
[1744296944056,8.4,1572.0,1571.9,1.27228]
[1744296944256,9.673,1572.0,1571.9,2.0702]
[1744296944755,1.27316,1571.8,1571.7,9.86e-06]
[1744296946361,4.48096,1571.8,1571.7,9.86e-06]
[1744296946859,15.31496,1571.8,1571.7,9.86e-06]
[1744296947360,1.27381,1571.0,1570.9,2.1755]
[1744296947567,4.48161,1571.0,1570.9,2.1755]
[1744296947751,1.27397,1570.8,1570.7,2.1214]
[1744296948156,4.48177,1570.8,1570.7,2.1214]
[1744296948356,1.27405,1570.7,1570.6,2.18503986]
[1744296948953,1.28348986,1570.9,1570.6,10.39283986]
[1744296949159,0.00953986,1570.9,1570.8,1.27397]
[1744296949462,0.00953986,1570.9,1570.8,6.27397]
[1744296950253,0.00953986,1570.9,1570.8,1.27397]
[1744296951959,0.00953986,1570.9,1570.8,8.34537]
[1744296952556,0.00953986,1570.9,1570.8,3.34537]
[1744296952858,0.00953986,1570.9,1570.8,11.55317]
[1744296953053,0.00953986,1570.9,1570.8,8.34537]
[1744296953359,0.00953986,1570.9,1570.8,3.34537]
[1744296953560,0.00953986,1570.9,1570.8,11.55317]
[1744296954060,0.00953986,1570.9,1570.8,17.54917]
[1744296956356,0.00953986,1570.9,1570.8,12.54917]
[1744296956764,1.28342986,1570.9,1570.8,2.0714]
[1744296956962,1.28342986,1570.9,1570.8,3.34537]
[1744296957663,0.00953986,1570.9,1570.8,3.34537]
[1744296957858,1.28342986,1570.9,1570.8,2.0714]
[1744296958463,0.00953986,1570.9,1570.8,3.34537]
[1744296958662,1.28342986,1570.9,1570.8,2.0714]
[1744296958960,1.28342986,1570.9,1570.8,3.34537]
[1744296959262,1.28342986,1570.9,1570.8,2.0714]
[1744296959758,1.27405,1570.7,1570.6,0.00953986]
[1744296959952,1.27405,1570.7,1570.6,1.28366986]
[1744296960153,1.27402,1570.8,1570.7,1.27405]
[1744296960352,9.67402,1570.8,1570.7,3.29955]
[1744296960556,9.67402,1570.8,1570.7,2.0255]
[1744296960751,1.27402,1570.8,1570.7,2.0255]
[1744296961154,1.27405,1570.7,1570.6,0.00953986]
[1744296961355,19.4219,1570.7,1570.0,1.2746]
[1744296961560,1.27454,1570.1,1570.0,3.453]
[1744296961956,11.147,1570.1,1569.4,12.39156]
[1744296962159,3.2078,1570.2,1569.8,1.27477]
[1744296962160,1.27473,1569.9,1569.8,1.27477]
[1744296962359,1.27473,1569.9,1569.6,3.2078]
[1744296962655,1.27476,1569.9,1569.7,1.28122978]
[1744296962846,1.27476,1569.9,1569.7,2.02186978]
[1744296962847,1.27478,1569.8,1569.7,2.02186978]
[1744296963053,3.30558,1569.8,1569.7,3.29672978]
[1744296963255,11.51338,1569.8,1569.7,0.00636978]
[1744296963760,17.34738,1569.8,1569.7,0.00636978]
[1744296964151,25.74738,1569.8,1569.7,0.00636978]
[1744296964962,17.53958,1569.8,1569.7,0.00636978]
[1744296965157,19.91338,1569.8,1569.7,0.00636978]
[1744296966764,14.91338,1569.8,1569.7,0.00636978]
[1744296966964,21.06338,1569.8,1569.7,0.00636978]
[1744296967458,26.06338,1569.8,1569.7,0.00636978]
[1744296967856,21.06338,1569.8,1569.7,0.00636978]
[1744296968056,23.68958,1569.8,1569.7,0.00636978]
[1744296968566,20.74738,1569.8,1569.7,1.28122978]
[1744296968957,19.4726,1569.8,1569.7,1.28122978]
[1744296969160,19.4726,1569.8,1569.7,0.00636978]
[1744296969161,20.74738,1569.8,1569.7,0.00636978]
[1744296969466,17.53958,1569.8,1569.7,1.28122978]
[1744296969764,17.53958,1569.8,1569.7,0.00636978]
[1744296969969,17.53958,1569.8,1569.7,1.28122978]
[1744296970159,16.2648,1569.8,1569.7,1.28122978]
[1744296970361,20.74738,1569.8,1569.7,0.00636978]
[1744296970862,17.53958,1569.8,1569.7,0.00636978]
[1744296971054,17.53958,1569.8,1569.7,2.18496978]
[1744296971263,17.53958,1569.8,1569.7,0.00636978]
[1744296971565,28.69058,1569.8,1569.7,9.78e-06]
[1744296972963,27.4158,1569.8,1569.1,2.1208]
[1744296973153,1.27535,1569.1,1568.8,5.25225]
[1744296973355,1.27551,1568.9,1568.8,2.1786]
[1744296973559,1.27559,1568.8,1568.7,0.51075703]
[1744296973754,2.0287,1568.8,1568.7,1.78643703]
[1744296973963,1.27568,1568.7,1568.6,1.27573]
[1744296974159,7.8627,1568.8,1568.4,7.4497]
[1744296974361,1.27584,1568.5,1568.4,4.2419]
[1744296974560,3.2078,1568.7,1568.6,1.27576]
[1744296974866,11.6078,1568.7,1568.6,1.27576]
[1744296975067,8.4,1568.7,1568.6,1.27576]
[1744296975854,2.0287,1568.8,1568.7,1.27568]
[1744296976066,3.30429,1568.8,1568.7,1.27568]
[1744296976266,11.70429,1568.8,1568.7,1.27568]
[1744296976476,10.4287,1568.8,1568.7,1.27568]
[1744296976774,11.70429,1568.8,1568.7,1.27568]
[1744296976961,8.4,1568.8,1568.7,1.27568]
[1744296977165,0.00953986,1568.9,1568.8,1.27559]
[1744296977466,1.28504986,1568.9,1568.8,1.27559]
[1744296977765,1.27563,1568.8,1568.7,1.27564]
[1744296977963,1.27568,1568.7,1568.6,1.27568]
[1744296978167,1.2756,1568.8,1568.5,5.18576]
[1744296978363,2.13833986,1568.9,1568.8,1.27559]
[1744296978564,2.13833986,1568.9,1568.7,1.27562]
[1744296978766,3.41390986,1568.9,1568.8,1.27559]
[1744296978968,0.00953986,1568.9,1568.8,1.27559]
[1744296979169,0.00953986,1568.9,1568.8,6.27559]
[1744296979369,0.00953986,1568.9,1568.8,1.27559]
[1744296979568,0.00953986,1568.9,1568.8,6.27559]
[1744296979770,6.18518977,1569.3,1569.2,1.27527]
[1744296979971,8.31398977,1569.3,1569.2,1.27527]
[1744296980171,4.90999977,1569.3,1569.2,6.27527]
[1744296980671,4.90999977,1569.3,1569.2,8.37737]
[1744296981868,1.27527,1569.2,1569.1,2.06913986]
[1744296982064,4.90999977,1569.3,1569.1,2.06913986]
[1744296982268,8.18588977,1569.3,1569.2,3.37737]
[1744296982471,8.18588977,1569.3,1569.2,2.1021]
[1744296982672,1.27527,1569.2,1569.1,0.00953986]
[1744296982874,3.27597,1569.2,1569.1,1.28488986]
[1744296983369,4.90999977,1569.3,1569.1,1.28482986]
[1744296983575,3.36127,1569.2,1569.1,0.00953986]
[1744296984571,1.27526,1569.3,1569.2,1.27525]
[1744296984772,4.48306,1569.3,1569.2,2.0748]
[1744296985073,6.56906,1569.3,1569.2,2.0748]
[1744296985276,6.56906,1569.3,1569.2,3.35007]
[1744296985666,6.56906,1569.3,1569.2,2.0748]
[1744296986370,1.27527,1569.2,1569.1,0.00953986]
[1744296986669,3.2078,1569.3,1569.1,0.00953986]
[1744296986873,9.25807,1569.2,1569.1,9.86e-06]
[1744296987374,14.25807,1569.2,1569.1,9.86e-06]
[1744296987569,12.9828,1569.2,1568.5,1.27577]
[1744296987874,12.9828,1569.2,1568.3,5.24384]
[1744296987875,1.276,1568.3,1568.2,3.2078]
[1744296988070,1.27625,1568.0,1567.9,8.5907]
[1744296988276,1.27633,1567.9,1567.8,2.0727]
[1744296988572,2.1488,1567.9,1567.8,3.34911]
[1744296988771,0.00953986,1568.0,1567.9,1.27633]
[1744296988977,0.00953986,1568.0,1567.9,3.34903]
[1744296989478,1.27636,1567.9,1567.6,3.2078]
[1744296989684,3.2078,1567.7,1567.5,3.32931]
[1744296989875,1.9865,1567.8,1567.6,1.27653]
[1744296990070,1.9865,1567.8,1567.6,1.27651]
[1744296990274,1.9865,1567.8,1567.5,2.0527]
[1744296990574,0.00953986,1568.0,1567.9,1.27633]
[1744296990772,1.28578986,1568.0,1567.8,1.27635]
[1744296990972,0.00953986,1568.0,1567.9,1.27633]
[1744296992184,0.00953986,1568.0,1567.9,4.48413]
[1744296992674,0.00953986,1568.0,1567.9,9.48413]
[1744296993573,9.3498,1568.4,1568.3,1.276]
[1744296993767,9.3498,1568.4,1568.0,3.19042]
[1744296993768,9.3498,1568.4,1568.2,1.27603]
[1744296993968,1.276,1568.3,1568.2,1.27603]
[1744296994174,3.4026,1568.3,1568.2,1.27603]
[1744296994374,2.1266,1568.3,1568.2,1.27603]
[1744296994576,1.276,1568.3,1568.2,1.27603]
[1744296995070,1.27608,1568.2,1568.1,0.00953986]
[1744296995270,1.276,1568.3,1568.2,1.27608]
[1744296995476,0.00953986,1568.4,1568.1,0.00953986]
[1744296995667,1.27605,1568.3,1568.2,1.27607]
[1744296996076,2.12153986,1568.4,1568.1,0.00953986]
[1744296996271,1.27605,1568.3,1568.1,0.00953986]
[1744296996478,3.39751986,1568.4,1568.1,0.00953986]
[1744296996678,0.00953986,1568.4,1568.3,1.276]
[1744296997069,0.00953986,1568.4,1568.3,9.4838]
[1744296997476,0.00953986,1568.4,1568.3,1.276]
[1744296997669,0.00953986,1568.4,1568.1,0.00953986]
[1744296997869,1.27606,1568.3,1568.2,1.27605]
[1744296998085,1.27608,1568.2,1568.1,0.00953986]
[1744296998376,3.38805,1568.3,1568.1,0.00953986]
[1744296998581,0.00953986,1568.4,1568.2,1.27602]
[1744296998782,1.27608,1568.2,1568.1,0.00953986]
[1744296998983,1.27603,1568.3,1568.2,1.27602]
[1744296999175,1.27606,1568.3,1568.2,1.27606]
[1744296999477,3.32631986,1568.4,1568.3,1.276]
[1744296999780,1.28551986,1568.4,1568.3,1.276]
[1744297000080,0.00953986,1568.4,1568.3,1.276]
[1744297000875,1.28545986,1568.4,1568.3,1.276]
[1744297001178,1.27608,1568.2,1568.1,0.00953986]
[1744297001680,4.48388,1568.2,1568.1,0.00953986]
[1744297001878,15.62688,1568.2,1568.1,0.00953986]
[1744297002177,1.27698,1567.1,1566.6,3.2078]
[1744297002379,3.2078,1567.0,1566.5,3.19348]
[1744297002686,4.48487,1567.0,1566.8,1.27717]
[1744297002886,4.4849,1567.0,1566.8,1.27717]
[1744297003071,4.4849,1567.0,1566.9,0.0110091]
[1744297003681,3.2078,1567.0,1566.9,1.2881491]
[1744297003885,3.2078,1567.0,1566.9,1.2991582]
[1744297004476,3.2078,1567.0,1566.9,1.3101673]
[1744297004677,0.00957334,1567.1,1567.0,1.27706]
[1744297004979,0.00957334,1567.1,1567.0,4.48486]
[1744297005172,5.2514,1567.6,1567.5,1.27665]
[1744297005383,6.528,1567.6,1567.4,1.27671]
[1744297005585,6.52802,1567.6,1567.5,0.0550455]
[1744297006087,5.2514,1567.6,1567.5,0.0550455]
[1744297006276,2.0436,1567.6,1567.5,1.3316955]
[1744297006584,2.0436,1567.6,1567.5,1.3427046]
[1744297007087,9.68612334,1567.7,1567.5,1.3537137]
[1744297007283,0.00957334,1567.7,1567.6,3.30427]
[1744297007782,11.6078,1568.2,1567.7,3.19115]
[1744297007983,3.2078,1568.2,1568.1,1.27616]
[1744297008191,3.44962,1568.3,1568.1,1.27616]
[1744297008388,1.1770281,1568.2,1568.1,1.27616]
[1744297008688,3.2078,1568.4,1568.0,3.19057]
[1744297008881,0.00957334,1568.3,1568.2,1.27608]
[1744297010083,0.00957334,1568.3,1568.2,6.27608]
[1744297010284,0.00957334,1568.3,1568.2,1.27608]
[1744297010489,1.27616,1568.1,1568.0,0.00957334]
[1744297010696,4.48396,1568.1,1568.0,0.00957334]
[1744297010880,9.48396,1568.1,1568.0,0.00957334]
[1744297011385,11.63936,1568.1,1568.0,0.00957334]
[1744297011586,20.03936,1568.1,1568.0,0.00957334]
[1744297012291,25.87336,1568.1,1568.0,0.00957334]
[1744297012787,25.87336,1568.1,1568.0,3.34e-06]
[1744297014990,25.87336,1568.1,1568.0,0.01110773]
[1744297015190,20.87336,1568.1,1568.0,0.01110773]
[1744297015492,1.2766,1567.6,1567.5,1.27661]
[1744297015692,3.2078,1567.7,1567.5,1.28772212]
[1744297015991,1.27657,1567.6,1567.5,0.01111212]
[1744297016188,3.28757,1567.6,1567.5,0.01111212]
[1744297016384,11.34747,1567.6,1567.0,8.2801]
[1744297016590,3.2078,1567.4,1567.0,11.47273]
[1744297016788,1.27688,1567.3,1567.2,1.27688]
[1744297016983,11.54318,1567.3,1567.2,1.28798439]
[1744297017189,8.4,1567.3,1567.2,1.28798439]
[1744297017492,3.2078,1567.4,1567.3,1.27682]
[1744297017686,3.21737334,1567.5,1567.3,0.02220878]
[1744297017893,3.14303,1567.4,1567.3,0.02220878]
[1744297018080,1.2769,1567.2,1567.1,0.00957334]
[1744297018286,4.4847,1567.2,1567.1,0.00957334]
[1744297018488,1.27688,1567.3,1567.1,5.02068651]
[1744297018795,1.2769,1567.2,1567.1,1.29763651]
[1744297018993,1.2769,1567.2,1567.1,1.3087409]
[1744297019194,1.27687,1567.3,1567.2,1.27686]
[1744297019487,1.27687,1567.3,1567.2,0.03332195]
[1744297019701,1.27682,1567.3,1567.2,5.03332195]
[1744297019888,1.27682,1567.3,1567.2,6.31022195]
[1744297020199,11.54307,1567.4,1567.3,1.27682]
[1744297020489,1.28626334,1567.5,1567.4,1.27673]
[1744297020687,1.22125927,1567.4,1567.3,1.2768]
[1744297020995,1.27682,1567.3,1567.2,2.07602819]
[1744297021187,4.48455,1567.4,1567.2,2.08713258]
[1744297021493,1.27682,1567.3,1567.2,0.01110439]
[1744297021692,1.27682,1567.3,1567.2,1.28800439]
[1744297021892,1.25469122,1567.2,1567.1,2.98940334]
[1744297022089,3.2078,1567.4,1567.1,1.71247334]
[1744297022284,3.21737334,1567.5,1567.4,1.27673]
[1744297022489,0.00957334,1567.5,1567.4,1.27673]
[1744297022684,4.96167956,1567.6,1567.5,1.27665]
[1744297022889,2.15207956,1567.6,1567.5,1.27665]
[1744297023196,1.27665,1567.5,1567.4,1.81480439]
[1744297023396,2.15207956,1567.6,1567.5,1.27665]
[1744297023890,2.15207956,1567.6,1567.5,6.28775439]
[1744297024196,0.00957334,1567.7,1567.6,1.27657]
[1744297024496,1.27651,1567.7,1567.5,0.01110439]
[1744297024695,9.6764,1567.9,1567.8,1.27641]
[1744297024897,9.6764,1567.9,1567.8,0.01110439]
[1744297025092,12.8842,1567.9,1567.8,0.01110439]
[1744297025289,11.3664,1567.9,1567.8,0.01110439]
[1744297025689,6.1742,1567.9,1567.8,0.01110439]
[1744297025889,23.1422,1567.9,1567.8,0.01110439]
[1744297026195,0.00957334,1568.0,1567.8,0.01110439]
[1744297026392,1.28584334,1568.0,1567.9,1.27633]
[1744297026597,3.21737334,1568.0,1567.8,0.01110439]
[1744297026899,1.27649,1567.7,1567.6,1.7997]
[1744297027099,6.38788561,1567.8,1567.4,7.7997]
[1744297027303,1.27673,1567.4,1567.3,3.07645]
[1744297027499,3.2078,1567.8,1567.3,1.7997]
[1744297027795,1.27663,1567.6,1567.5,1.27663]
[1744297028191,5.834,1567.9,1567.5,8.19148]
[1744297028392,7.11033,1567.9,1567.8,1.27641]
[1744297028601,1.27633,1567.9,1567.8,1.27641]
[1744297028796,3.15236334,1568.0,1567.9,1.27633]
[1744297028992,1.28586334,1568.0,1567.9,1.27633]
[1744297029193,0.00957334,1568.0,1567.9,1.27633]
[1744297029396,0.00957334,1568.0,1567.9,1.7724]
[1744297029600,1.28582334,1568.0,1567.9,1.7724]
[1744297029905,1.27633,1567.9,1567.8,5.996]
[1744297030105,1.27633,1567.9,1567.8,7.27241]
[1744297030898,4.48413,1567.9,1567.8,5.996]
[1744297031096,4.48413,1567.9,1567.8,7.27241]
[1744297031304,1.27641,1567.8,1567.7,1.7724]
[1744297031499,3.13931,1567.8,1567.7,3.04889]
[1744297031703,1.28588334,1568.0,1567.9,1.27633]
[1744297031898,1.27636,1567.9,1567.8,1.27634]
[1744297032099,0.00957334,1568.0,1567.9,1.27633]
[1744297032604,1.28582334,1568.0,1567.7,5.996]
[1744297032904,1.2767,1567.5,1567.4,1.27668]
[1744297033096,3.2078,1567.5,1567.1,0.00957334]
[1744297033296,1.2769,1567.2,1567.1,0.00957334]
[1744297033496,1.2769,1567.2,1567.1,1.28652334]
[1744297033696,1.2769,1567.2,1567.1,0.00957334]
[1744297033999,11.6078,1567.3,1567.1,0.00957334]
[1744297034000,3.2078,1567.3,1567.2,1.2769]
[1744297035701,3.19082,1567.9,1567.6,1.27655]
[1744297035906,1.27653,1567.7,1567.6,1.27655]
[1744297036100,0.00957334,1568.0,1567.5,6.38323]
[1744297036294,3.04524,1567.9,1567.7,1.27641]
[1744297036508,3.04531,1567.9,1567.7,1.27641]
[1744297036704,3.04531,1567.9,1567.8,1.27641]
[1744297037002,0.00957334,1568.0,1567.9,1.27633]
[1744297037401,1.28582334,1568.0,1567.9,1.27633]
[1744297037611,0.00957334,1568.0,1567.9,1.27633]
[1744297037800,7.44251935,1567.9,1567.6,9.6006]
[1744297038110,8.71890935,1567.9,1567.7,1.27641]
[1744297038402,7.44251935,1567.9,1567.8,1.27641]
[1744297039805,10.65031935,1567.9,1567.6,1.7526]
[1744297040107,1.7821,1567.8,1567.7,1.27644]
[1744297040301,3.05851,1567.8,1567.6,3.0291]
[1744297040501,3.05851,1567.8,1567.7,1.27649]
[1744297040909,1.7821,1567.8,1567.6,1.7526]
[1744297041104,1.7821,1567.8,1567.7,1.27649]
[1744297041503,1.27649,1567.7,1567.6,3.0291]
[1744297041705,11.45858,1567.8,1567.7,1.27649]
[1744297042706,11.45851,1567.8,1567.7,1.27649]
[1744297042906,3.05851,1567.8,1567.7,1.27649]
[1744297043108,3.2078,1567.9,1567.8,1.27641]
[1744297043411,1.27638,1567.9,1567.8,1.27638]
[1744297044011,1.27649,1567.8,1567.7,1.27643]
[1744297044215,1.27673,1567.4,1567.3,3.2078]
[1744297044403,1.2769,1567.2,1566.9,4.48488]
[1744297044706,1.2769,1567.2,1566.9,9.59348]
[1744297044910,1.2769,1567.2,1567.1,1.28647334]
[1744297045111,1.2769,1567.2,1567.1,0.00957334]
[1744297045305,4.4847,1567.2,1567.1,0.00957334]
[1744297045907,3.2078,1567.2,1567.1,1.28655334]
[1744297046102,1.27676,1567.4,1567.3,1.27675]
[1744297046311,4.48451,1567.5,1567.4,1.27673]
[1744297046515,3.06961,1567.6,1567.5,1.27665]
[1744297046719,1.27668,1567.5,1567.4,1.27667]